[Event "Late-Titled-Tuesday-Blitz-September-26-2023"]
[Site "Chess.com"]
[Date "2023.09.26"]
[Round "4"]
[White "Bodhanas"]
[Black "Manukyan_Artak"]
[Result "1-0"]
[WhiteElo "2091"]
[BlackElo "2416"]
[TimeControl "180+1"]
[EndTime "14:37:05 PDT"]
[Termination "Bodhanas won by resignation"]

1. d4 {[%clk 0:02:59.9]} 1... d5 {[%clk 0:02:59.8]} 2. Nf3 {[%clk 0:03:00.2]}
2... Nf6 {[%clk 0:02:58.7]} 3. Bf4 {[%clk 0:02:59.8]} 3... c5 {[%clk 0:02:55.9]}
4. c3 {[%clk 0:02:57.5]} 4... Qb6 {[%clk 0:02:54.4]} 5. Qb3 {[%clk 0:02:51.1]}
5... c4 {[%clk 0:02:53.6]} 6. Qc2 {[%clk 0:02:49.4]} 6... Nc6 {[%clk 0:02:50.8]}
7. Nbd2 {[%clk 0:02:37.7]} 7... g6 {[%clk 0:02:49.5]} 8. g3 {[%clk 0:02:30]}
8... Bf5 {[%clk 0:02:49.2]} 9. Qc1 {[%clk 0:02:29]} 9... Bg7 {[%clk 0:02:41.8]}
10. Bg2 {[%clk 0:02:27.5]} 10... O-O {[%clk 0:02:41.8]} 11. O-O {[%clk
0:02:26.7]} 11... Rad8 {[%clk 0:02:32.2]} 12. Ne5 {[%clk 0:02:17]} 12... h5
{[%clk 0:02:06.1]} 13. Nxc6 {[%clk 0:02:04.5]} 13... bxc6 {[%clk 0:02:05.6]} 14.
Re1 {[%clk 0:01:59.1]} 14... h4 {[%clk 0:01:55.2]} 15. e4 {[%clk 0:01:51]} 15...
dxe4 {[%clk 0:01:52.2]} 16. Nxe4 {[%clk 0:01:48.6]} 16... hxg3 {[%clk
0:01:51.1]} 17. hxg3 {[%clk 0:01:40.2]} 17... Nd5 {[%clk 0:01:46]} 18. Bh6
{[%clk 0:01:32.4]} 18... Bxe4 {[%clk 0:01:36]} 19. Bxe4 {[%clk 0:01:25.9]} 19...
Bxh6 {[%clk 0:01:25.3]} 20. Qxh6 {[%clk 0:01:25.2]} 20... Qxb2 {[%clk
0:01:25.6]} 21. Rab1 {[%clk 0:01:07.5]} 21... Qxc3 {[%clk 0:01:21.4]} 22. Bxg6
{[%clk 0:00:52.8]} 22... Nf6 {[%clk 0:01:02]} 23. Rxe7 {[%clk 0:00:30.2]} 23...
Qxd4 {[%clk 0:01:00.5]} 24. Bxf7+ {[%clk 0:00:28]} 24... Rxf7 {[%clk 0:00:57.3]}
25. Qg6+ {[%clk 0:00:27.8]} 25... Kh8 {[%clk 0:00:57.8]} 26. Rxf7 {[%clk
0:00:25.8]} 26... Qg4 {[%clk 0:00:35.7]} 27. Qxf6+ {[%clk 0:00:23.8]} 1-0

[Event "Late-Titled-Tuesday-Blitz-September-26-2023"]
[Site "Chess.com"]
[Date "2023.09.26"]
[Round "4"]
[White "expii"]
[Black "ExchangeAB"]
[Result "0-1"]
[WhiteElo "2238"]
[BlackElo "2411"]
[TimeControl "180+1"]
[EndTime "14:37:06 PDT"]
[Termination "ExchangeAB won on time"]

1. e4 {[%clk 0:03:00.9]} 1... c6 {[%clk 0:02:56]} 2. d4 {[%clk 0:02:53.9]} 2...
d5 {[%clk 0:02:56.9]} 3. f3 {[%clk 0:02:54.1]} 3... g6 {[%clk 0:02:55.5]} 4. Nc3
{[%clk 0:02:52.5]} 4... Bg7 {[%clk 0:02:55.9]} 5. Be3 {[%clk 0:02:51.7]} 5...
dxe4 {[%clk 0:02:55.7]} 6. fxe4 {[%clk 0:02:52]} 6... Nf6 {[%clk 0:02:56.4]} 7.
h3 {[%clk 0:02:48.6]} 7... O-O {[%clk 0:02:56.6]} 8. Nf3 {[%clk 0:02:48.3]} 8...
Nbd7 {[%clk 0:02:46.1]} 9. Bc4 {[%clk 0:02:42.4]} 9... b5 {[%clk 0:02:24.7]} 10.
Bd3 {[%clk 0:02:39.6]} 10... b4 {[%clk 0:02:21.2]} 11. Ne2 {[%clk 0:02:23.5]}
11... Qc7 {[%clk 0:02:20.7]} 12. O-O {[%clk 0:02:17.4]} 12... e5 {[%clk
0:02:14.8]} 13. c3 {[%clk 0:01:54.8]} 13... bxc3 {[%clk 0:02:11.2]} 14. bxc3
{[%clk 0:01:55.7]} 14... Re8 {[%clk 0:02:00.9]} 15. Qc2 {[%clk 0:01:53.2]} 15...
a5 {[%clk 0:01:55.1]} 16. Kh1 {[%clk 0:01:44.8]} 16... Ba6 {[%clk 0:01:54.6]}
17. Bxa6 {[%clk 0:01:42]} 17... Rxa6 {[%clk 0:01:55.5]} 18. dxe5 {[%clk
0:01:38.1]} 18... Nxe5 {[%clk 0:01:53.6]} 19. Bf4 {[%clk 0:01:38.1]} 19... Nh5
{[%clk 0:01:47.2]} 20. Bh2 {[%clk 0:01:26]} 20... Qe7 {[%clk 0:01:46.8]} 21.
Nxe5 {[%clk 0:01:23.4]} 21... Bxe5 {[%clk 0:01:47.7]} 22. Nd4 {[%clk 0:01:21.6]}
22... Bxh2 {[%clk 0:01:41]} 23. Kxh2 {[%clk 0:01:16.6]} 23... Qe5+ {[%clk
0:01:37.6]} 24. Kg1 {[%clk 0:01:16.8]} 24... c5 {[%clk 0:01:19.2]} 25. Nf3
{[%clk 0:01:03.5]} 25... Qxe4 {[%clk 0:01:16.4]} 26. Qxe4 {[%clk 0:00:45.8]}
26... Rxe4 {[%clk 0:01:17.3]} 27. Ng5 {[%clk 0:00:45.5]} 27... Re7 {[%clk
0:01:16.9]} 28. Rad1 {[%clk 0:00:42.1]} 28... Ng3 {[%clk 0:01:10.1]} 29. Rd8+
{[%clk 0:00:33.3]} 29... Kg7 {[%clk 0:01:09.3]} 30. Rfd1 {[%clk 0:00:30.4]}
30... Ne2+ {[%clk 0:01:03.5]} 31. Kh1 {[%clk 0:00:25.3]} 31... Nxc3 {[%clk
0:01:03.1]} 0-1

[Event "Late-Titled-Tuesday-Blitz-September-26-2023"]
[Site "Chess.com"]
[Date "2023.09.26"]
[Round "4"]
[White "PawnEatingZombie"]
[Black "jup1978"]
[Result "0-1"]
[WhiteElo "2143"]
[BlackElo "2460"]
[TimeControl "180+1"]
[EndTime "14:37:15 PDT"]
[Termination "jup1978 won by resignation"]

1. e4 {[%clk 0:03:00.9]} 1... c6 {[%clk 0:02:57.9]} 2. d4 {[%clk 0:02:59]} 2...
d5 {[%clk 0:02:58.8]} 3. exd5 {[%clk 0:02:59.1]} 3... cxd5 {[%clk 0:02:59.7]} 4.
Bd3 {[%clk 0:02:58.3]} 4... Nc6 {[%clk 0:02:59.6]} 5. c3 {[%clk 0:02:58.3]} 5...
Nf6 {[%clk 0:02:58.5]} 6. Nf3 {[%clk 0:02:58.3]} 6... Bg4 {[%clk 0:02:55.5]} 7.
O-O {[%clk 0:02:58.7]} 7... e6 {[%clk 0:02:55.7]} 8. Re1 {[%clk 0:02:55]} 8...
Bd6 {[%clk 0:02:54.9]} 9. h3 {[%clk 0:02:55.3]} 9... Bh5 {[%clk 0:02:51.6]} 10.
Na3 {[%clk 0:02:46.7]} 10... a6 {[%clk 0:02:50]} 11. Nc2 {[%clk 0:02:46.1]}
11... O-O {[%clk 0:02:47.7]} 12. Ne3 {[%clk 0:02:45.7]} 12... Bg6 {[%clk
0:02:41.4]} 13. Ng4 {[%clk 0:02:28.5]} 13... Nxg4 {[%clk 0:02:34.9]} 14. hxg4
{[%clk 0:02:29.4]} 14... b5 {[%clk 0:02:31.9]} 15. a3 {[%clk 0:02:26]} 15... Qc7
{[%clk 0:02:30]} 16. g3 {[%clk 0:02:02.7]} 16... Rab8 {[%clk 0:02:04.5]} 17. Kg2
{[%clk 0:02:01]} 17... a5 {[%clk 0:02:00.2]} 18. b4 {[%clk 0:01:54.8]} 18...
Rfc8 {[%clk 0:01:54]} 19. Bxg6 {[%clk 0:01:42.7]} 19... hxg6 {[%clk 0:01:50.8]}
20. Bd2 {[%clk 0:01:43.2]} 20... axb4 {[%clk 0:01:44.1]} 21. axb4 {[%clk
0:01:42.5]} 21... Ra8 {[%clk 0:01:45]} 22. Qe2 {[%clk 0:01:40.2]} 22... Qb6
{[%clk 0:01:37.1]} 23. g5 {[%clk 0:01:32]} 23... Ne7 {[%clk 0:01:33.1]} 24. Qd3
{[%clk 0:01:15.8]} 24... Bc7 {[%clk 0:01:28.1]} 25. Rh1 {[%clk 0:01:11.4]} 25...
Rxa1 {[%clk 0:01:24.7]} 26. Rxa1 {[%clk 0:01:10.5]} 26... Nf5 {[%clk 0:01:25.1]}
27. Bf4 {[%clk 0:00:56.5]} 27... Bxf4 {[%clk 0:01:22.5]} 28. gxf4 {[%clk
0:00:57.4]} 28... Nd6 {[%clk 0:01:15.7]} 29. Ne5 {[%clk 0:00:53.7]} 29... Ne4
{[%clk 0:01:14.6]} 30. Ra3 {[%clk 0:00:46.3]} 30... Qc7 {[%clk 0:01:03.4]} 31.
Qxb5 {[%clk 0:00:40.6]} 31... Nxc3 {[%clk 0:01:01.7]} 32. Qd7 {[%clk 0:00:17.3]}
32... Qxd7 {[%clk 0:00:56.2]} 33. Nxd7 {[%clk 0:00:18.2]} 33... Nb5 {[%clk
0:00:56.3]} 34. Rd3 {[%clk 0:00:14.8]} 34... Rc4 {[%clk 0:00:47.8]} 0-1

[Event "Late-Titled-Tuesday-Blitz-September-26-2023"]
[Site "Chess.com"]
[Date "2023.09.26"]
[Round "4"]
[White "Iball95"]
[Black "Defend1r"]
[Result "1-0"]
[WhiteElo "2761"]
[BlackElo "2514"]
[TimeControl "180+1"]
[EndTime "14:37:21 PDT"]
[Termination "Iball95 won on time"]

1. e4 {[%clk 0:03:00]} 1... c5 {[%clk 0:02:57.9]} 2. Nf3 {[%clk 0:02:59.8]} 2...
d6 {[%clk 0:02:58.2]} 3. Nc3 {[%clk 0:03:00]} 3... Nf6 {[%clk 0:02:58]} 4. d4
{[%clk 0:03:00.3]} 4... cxd4 {[%clk 0:02:58.3]} 5. Qxd4 {[%clk 0:03:00.9]} 5...
Nc6 {[%clk 0:02:52.3]} 6. Bb5 {[%clk 0:03:01]} 6... e5 {[%clk 0:02:41.8]} 7. Qd3
{[%clk 0:02:57.4]} 7... a6 {[%clk 0:02:40.7]} 8. Ba4 {[%clk 0:02:52.2]} 8... Be6
{[%clk 0:02:34.6]} 9. Bg5 {[%clk 0:02:51.5]} 9... Be7 {[%clk 0:02:33.3]} 10. O-O
{[%clk 0:02:50.7]} 10... O-O {[%clk 0:02:28.8]} 11. Rfd1 {[%clk 0:02:41.8]}
11... Nb4 {[%clk 0:02:02.1]} 12. Qe2 {[%clk 0:02:32.2]} 12... Qc7 {[%clk
0:01:55.9]} 13. Bb3 {[%clk 0:02:28.8]} 13... Bxb3 {[%clk 0:01:43.4]} 14. cxb3
{[%clk 0:02:25.9]} 14... Nh5 {[%clk 0:01:16.2]} 15. Nxe5 {[%clk 0:01:48.9]}
15... Bxg5 {[%clk 0:01:15.4]} 16. Qxh5 {[%clk 0:01:48.4]} 16... dxe5 {[%clk
0:00:30.8]} 17. Qxg5 {[%clk 0:01:45.7]} 17... Rad8 {[%clk 0:00:27.1]} 18. a3
{[%clk 0:01:36.9]} 18... Nc2 {[%clk 0:00:27.3]} 19. Nd5 {[%clk 0:01:32.8]} 19...
Rxd5 {[%clk 0:00:15.1]} 20. exd5 {[%clk 0:01:27.2]} 20... Nxa1 {[%clk 0:00:15]}
21. Rxa1 {[%clk 0:01:27.9]} 21... Rd8 {[%clk 0:00:13.9]} 22. Rd1 {[%clk
0:01:25.2]} 22... f6 {[%clk 0:00:12.2]} 23. Qd2 {[%clk 0:01:22.3]} 23... Qd6
{[%clk 0:00:10.3]} 24. h4 {[%clk 0:01:22.5]} 24... Kf7 {[%clk 0:00:09.3]} 25. h5
{[%clk 0:01:21.1]} 25... e4 {[%clk 0:00:07.8]} 26. Qd4 {[%clk 0:01:19]} 26... f5
{[%clk 0:00:07.1]} 27. b4 {[%clk 0:01:18.9]} 27... Rc8 {[%clk 0:00:07]} 28. g3
{[%clk 0:01:17.6]} 28... Rc2 {[%clk 0:00:06.8]} 29. Rd2 {[%clk 0:01:15.1]} 29...
Rc1+ {[%clk 0:00:06.3]} 30. Kg2 {[%clk 0:01:15.2]} 30... g6 {[%clk 0:00:04.5]}
31. h6 {[%clk 0:01:14.1]} 31... Ke8 {[%clk 0:00:03.5]} 32. Qh8+ {[%clk
0:01:13.1]} 32... Kd7 {[%clk 0:00:03.1]} 33. Qxh7+ {[%clk 0:01:11.4]} 33... Kc8
{[%clk 0:00:03.2]} 34. Qg8+ {[%clk 0:01:09.1]} 34... Kc7 {[%clk 0:00:02.8]} 35.
h7 {[%clk 0:01:06.7]} 35... e3 {[%clk 0:00:03.1]} 36. Qf7+ {[%clk 0:01:04.8]}
36... Kb6 {[%clk 0:00:02.8]} 37. fxe3 {[%clk 0:01:02.8]} 1-0

[Event "Late-Titled-Tuesday-Blitz-September-26-2023"]
[Site "Chess.com"]
[Date "2023.09.26"]
[Round "4"]
[White "venturov"]
[Black "JiiHart"]
[Result "1-0"]
[WhiteElo "2467"]
[BlackElo "2180"]
[TimeControl "180+1"]
[EndTime "14:37:25 PDT"]
[Termination "venturov won on time"]

1. e4 {[%clk 0:03:00.9]} 1... c5 {[%clk 0:02:58.8]} 2. Nf3 {[%clk 0:02:58.1]}
2... Nc6 {[%clk 0:02:58]} 3. Bc4 {[%clk 0:02:58]} 3... e6 {[%clk 0:02:57]} 4.
O-O {[%clk 0:02:57.9]} 4... d5 {[%clk 0:02:53.4]} 5. Bb5 {[%clk 0:02:57.6]} 5...
dxe4 {[%clk 0:02:49.2]} 6. Ne5 {[%clk 0:02:55.8]} 6... Qc7 {[%clk 0:02:48.8]} 7.
Nxc6 {[%clk 0:02:55.8]} 7... bxc6 {[%clk 0:02:48.7]} 8. Bc4 {[%clk 0:02:56.7]}
8... Nf6 {[%clk 0:02:45.9]} 9. Nc3 {[%clk 0:02:52.6]} 9... Bd6 {[%clk
0:02:39.4]} 10. h3 {[%clk 0:02:52.5]} 10... g5 {[%clk 0:02:01.1]} 11. Qe2 {[%clk
0:02:49.9]} 11... g4 {[%clk 0:01:57.4]} 12. hxg4 {[%clk 0:02:47.8]} 12... Rg8
{[%clk 0:01:54.7]} 13. f3 {[%clk 0:02:40.3]} 13... Bh2+ {[%clk 0:01:38.4]} 14.
Kh1 {[%clk 0:02:38.4]} 14... Qg3 {[%clk 0:01:24.7]} 15. Qe1 {[%clk 0:02:27.9]}
15... exf3 {[%clk 0:01:20.3]} 16. Qxg3 {[%clk 0:02:27.6]} 16... Bxg3 {[%clk
0:01:19.7]} 17. gxf3 {[%clk 0:02:28]} 17... h5 {[%clk 0:01:04.5]} 18. Rg1 {[%clk
0:01:21.9]} 18... h4 {[%clk 0:00:44]} 19. d3 {[%clk 0:01:15.4]} 19... e5 {[%clk
0:00:40.7]} 20. Kg2 {[%clk 0:01:10.6]} 20... Nxg4 {[%clk 0:00:32.8]} 21. fxg4
{[%clk 0:01:09.4]} 21... Bxg4 {[%clk 0:00:33]} 22. Ne4 {[%clk 0:01:03.7]} 22...
O-O-O {[%clk 0:00:12.7]} 23. Nxg3 {[%clk 0:01:01.9]} 23... Bd7 {[%clk
0:00:06.7]} 24. Kf2 {[%clk 0:00:57.8]} 24... hxg3+ {[%clk 0:00:06.4]} 25. Rxg3
{[%clk 0:00:58.7]} 25... Rxg3 {[%clk 0:00:06.5]} 26. Kxg3 {[%clk 0:00:59.6]}
26... Rg8+ {[%clk 0:00:06.7]} 27. Kf2 {[%clk 0:01:00.1]} 27... Rh8 {[%clk
0:00:06.2]} 28. Be3 {[%clk 0:00:57.3]} 28... f5 {[%clk 0:00:06]} 29. Bxc5 {[%clk
0:00:52.5]} 29... f4 {[%clk 0:00:06.1]} 30. Rg1 {[%clk 0:00:51.5]} 30... Rh2+
{[%clk 0:00:03]} 31. Rg2 {[%clk 0:00:51.5]} 31... Rh3 {[%clk 0:00:01.7]} 32. Bd6
{[%clk 0:00:48.7]} 1-0

[Event "Late-Titled-Tuesday-Blitz-September-26-2023"]
[Site "Chess.com"]
[Date "2023.09.26"]
[Round "4"]
[White "leoduarte"]
[Black "MajorCoast"]
[Result "1-0"]
[WhiteElo "2488"]
[BlackElo "2267"]
[TimeControl "180+1"]
[EndTime "14:37:25 PDT"]
[Termination "leoduarte won on time"]

1. d4 {[%clk 0:03:00.9]} 1... d5 {[%clk 0:02:58.6]} 2. c4 {[%clk 0:02:59.7]}
2... e6 {[%clk 0:02:57.5]} 3. Nf3 {[%clk 0:02:59.9]} 3... Nf6 {[%clk 0:02:56.7]}
4. g3 {[%clk 0:02:59.7]} 4... Be7 {[%clk 0:02:54.1]} 5. Bg2 {[%clk 0:02:59.2]}
5... O-O {[%clk 0:02:54.8]} 6. O-O {[%clk 0:02:59]} 6... dxc4 {[%clk 0:02:55.6]}
7. Qc2 {[%clk 0:02:58.9]} 7... a6 {[%clk 0:02:55.9]} 8. a4 {[%clk 0:02:56]} 8...
Bd7 {[%clk 0:02:56]} 9. Qxc4 {[%clk 0:02:55.6]} 9... Bc6 {[%clk 0:02:51.5]} 10.
Bg5 {[%clk 0:02:52.9]} 10... h6 {[%clk 0:02:49.8]} 11. Bxf6 {[%clk 0:02:47]}
11... Bxf6 {[%clk 0:02:50.7]} 12. Rd1 {[%clk 0:02:43.2]} 12... b5 {[%clk
0:02:40.6]} 13. Qc2 {[%clk 0:02:26.6]} 13... b4 {[%clk 0:02:32.1]} 14. e4 {[%clk
0:02:10.1]} 14... b3 {[%clk 0:02:09.2]} 15. Qe2 {[%clk 0:01:50.2]} 15... Nd7
{[%clk 0:02:03]} 16. Nc3 {[%clk 0:01:48.8]} 16... Qb8 {[%clk 0:01:31.4]} 17. d5
{[%clk 0:01:08.2]} 17... exd5 {[%clk 0:01:25.5]} 18. exd5 {[%clk 0:01:07.7]}
18... Bb7 {[%clk 0:01:20.3]} 19. Qc4 {[%clk 0:00:55.7]} 19... Bxc3 {[%clk
0:00:35.9]} 20. Qxc3 {[%clk 0:00:50.3]} 20... Bc8 {[%clk 0:00:23.1]} 21. Nd4
{[%clk 0:00:46.7]} 21... Nb6 {[%clk 0:00:09.4]} 22. Nc6 {[%clk 0:00:29.1]} 22...
Qb7 {[%clk 0:00:06.1]} 23. d6 {[%clk 0:00:29.7]} 23... cxd6 {[%clk 0:00:03.9]}
24. a5 {[%clk 0:00:30.3]} 1-0

[Event "Late-Titled-Tuesday-Blitz-September-26-2023"]
[Site "Chess.com"]
[Date "2023.09.26"]
[Round "4"]
[White "ValeriyGrinev"]
[Black "A-Fier"]
[Result "1-0"]
[WhiteElo "2561"]
[BlackElo "2781"]
[TimeControl "180+1"]
[EndTime "14:37:29 PDT"]
[Termination "ValeriyGrinev won by resignation"]

1. d4 {[%clk 0:02:58.5]} 1... Nf6 {[%clk 0:02:58.4]} 2. c4 {[%clk 0:02:56.4]}
2... c5 {[%clk 0:02:58.1]} 3. d5 {[%clk 0:02:53.9]} 3... g6 {[%clk 0:02:58.3]}
4. Nc3 {[%clk 0:02:53.6]} 4... Bg7 {[%clk 0:02:58.7]} 5. e4 {[%clk 0:02:54.3]}
5... d6 {[%clk 0:02:59]} 6. Nf3 {[%clk 0:02:54.9]} 6... O-O {[%clk 0:02:59.1]}
7. h3 {[%clk 0:02:55.5]} 7... e6 {[%clk 0:02:59.6]} 8. Bd3 {[%clk 0:02:55.7]}
8... Re8 {[%clk 0:02:59.7]} 9. O-O {[%clk 0:02:55.1]} 9... Na6 {[%clk
0:03:00.1]} 10. Bg5 {[%clk 0:02:54.1]} 10... Nc7 {[%clk 0:03:00.2]} 11. Qd2
{[%clk 0:02:53.5]} 11... b6 {[%clk 0:02:57.3]} 12. Rfe1 {[%clk 0:02:51.6]} 12...
e5 {[%clk 0:02:57.3]} 13. a3 {[%clk 0:02:49.6]} 13... Qe7 {[%clk 0:02:51.3]} 14.
b4 {[%clk 0:02:49.6]} 14... Na6 {[%clk 0:02:51.7]} 15. Rab1 {[%clk 0:02:48.1]}
15... Qf8 {[%clk 0:02:51.9]} 16. Bc2 {[%clk 0:02:45.6]} 16... Nd7 {[%clk
0:02:51.5]} 17. Ba4 {[%clk 0:02:43.6]} 17... h6 {[%clk 0:02:50.5]} 18. Be3
{[%clk 0:02:40.5]} 18... Rd8 {[%clk 0:02:50]} 19. Bc6 {[%clk 0:02:38.4]} 19...
Rb8 {[%clk 0:02:49.9]} 20. Nb5 {[%clk 0:02:38.8]} 20... f5 {[%clk 0:02:48.8]}
21. Qc2 {[%clk 0:02:36.4]} 21... Nf6 {[%clk 0:02:46.9]} 22. exf5 {[%clk
0:02:33]} 22... Bxf5 {[%clk 0:02:46.5]} 23. Qc1 {[%clk 0:02:30.6]} 23... Bxb1
{[%clk 0:02:46.7]} 24. Qxb1 {[%clk 0:02:29.3]} 24... Qf7 {[%clk 0:02:47.3]} 25.
Nd2 {[%clk 0:02:25.1]} 25... Rf8 {[%clk 0:02:45.8]} 26. Nxd6 {[%clk 0:02:22]}
26... Qe7 {[%clk 0:02:46.3]} 27. N2e4 {[%clk 0:02:13.2]} 27... Nh5 {[%clk
0:02:44.6]} 28. Qd1 {[%clk 0:02:05.6]} 28... cxb4 {[%clk 0:02:43]} 29. Qa4
{[%clk 0:02:02.8]} 29... Nc5 {[%clk 0:02:42.3]} 30. Qxb4 {[%clk 0:01:56.3]}
30... Nxe4 {[%clk 0:02:40.7]} 31. Nxe4 {[%clk 0:01:56]} 31... Qh4 {[%clk
0:02:41.6]} 32. d6 {[%clk 0:01:46]} 32... Nf4 {[%clk 0:02:42.1]} 33. Bxf4 {[%clk
0:01:39.9]} 33... exf4 {[%clk 0:02:43]} 34. d7 {[%clk 0:01:33.6]} 34... f3
{[%clk 0:02:43.4]} 35. Qd6 {[%clk 0:01:27.3]} 35... fxg2 {[%clk 0:02:42.3]} 36.
Qxg6 {[%clk 0:01:25.8]} 36... Qxh3 {[%clk 0:02:40.7]} 37. Qxg2 {[%clk
0:01:20.8]} 37... Qxg2+ {[%clk 0:02:40.9]} 38. Kxg2 {[%clk 0:01:21.7]} 38...
Rbd8 {[%clk 0:02:35.9]} 39. Nd6 {[%clk 0:01:19.5]} 39... Bb2 {[%clk 0:02:30.7]}
40. a4 {[%clk 0:01:16.4]} 40... Bd4 {[%clk 0:02:27.1]} 41. Re2 {[%clk
0:01:12.3]} 41... Kg7 {[%clk 0:02:24.3]} 42. Nb7 {[%clk 0:01:12.2]} 42... Rb8
{[%clk 0:02:24.6]} 43. Re8 {[%clk 0:01:08.5]} 43... Bf6 {[%clk 0:02:22.9]} 44.
f4 {[%clk 0:00:43.4]} 44... Kf7 {[%clk 0:02:21]} 45. Nd6+ {[%clk 0:00:41.7]}
45... Kg6 {[%clk 0:02:21.5]} 46. Be4+ {[%clk 0:00:29.9]} 46... Kg7 {[%clk
0:02:21.3]} 47. Nf5+ {[%clk 0:00:23.2]} 47... Kf7 {[%clk 0:02:21.2]} 48. Nxh6+
{[%clk 0:00:22.9]} 48... Kg7 {[%clk 0:02:20.3]} 49. Nf5+ {[%clk 0:00:23.2]}
49... Kh8 {[%clk 0:02:20.3]} 50. Nd6 {[%clk 0:00:20.9]} 50... Kg7 {[%clk
0:02:15.6]} 51. Bc6 {[%clk 0:00:17]} 51... Bd8 {[%clk 0:02:13.3]} 52. Nc8 {[%clk
0:00:10.2]} 52... Bc7 {[%clk 0:02:12.2]} 53. Rxf8 {[%clk 0:00:09.6]} 53... Kxf8
{[%clk 0:02:12.1]} 54. Kf3 {[%clk 0:00:10.2]} 54... a5 {[%clk 0:02:11.7]} 55.
Ke4 {[%clk 0:00:10.6]} 55... Kf7 {[%clk 0:02:10.8]} 56. Bd5+ {[%clk 0:00:09.5]}
56... Kf6 {[%clk 0:02:10.7]} 57. f5 {[%clk 0:00:09.9]} 57... Bd8 {[%clk
0:02:08.2]} 58. Be6 {[%clk 0:00:10.3]} 58... Bc7 {[%clk 0:02:07.3]} 59. Kd5
{[%clk 0:00:10.8]} 59... Bd8 {[%clk 0:02:07.9]} 60. Kd6 {[%clk 0:00:10.9]} 60...
Kg7 {[%clk 0:02:07.4]} 61. Na7 {[%clk 0:00:10.6]} 61... Bh4 {[%clk 0:02:04.6]}
62. Nc6 {[%clk 0:00:11.2]} 62... Rf8 {[%clk 0:02:04.8]} 63. Kc7 {[%clk
0:00:10.6]} 63... Bg3+ {[%clk 0:02:04.4]} 64. Kxb6 {[%clk 0:00:10.5]} 64... Bh4
{[%clk 0:02:04.5]} 65. Kxa5 {[%clk 0:00:10]} 65... Ra8+ {[%clk 0:02:03.4]} 66.
Kb5 {[%clk 0:00:10.5]} 66... Kh6 {[%clk 0:02:02.6]} 67. a5 {[%clk 0:00:11]}
67... Kg5 {[%clk 0:02:03.1]} 68. a6 {[%clk 0:00:11.5]} 68... Kf4 {[%clk
0:02:03.7]} 69. Kb6 {[%clk 0:00:10.8]} 69... Ke4 {[%clk 0:02:03.8]} 70. Kb7
{[%clk 0:00:11.3]} 70... Rf8 {[%clk 0:02:04]} 71. a7 {[%clk 0:00:11.6]} 1-0

[Event "Late-Titled-Tuesday-Blitz-September-26-2023"]
[Site "Chess.com"]
[Date "2023.09.26"]
[Round "4"]
[White "kacprekt"]
[Black "Goryachkina"]
[Result "0-1"]
[WhiteElo "2487"]
[BlackElo "2657"]
[TimeControl "180+1"]
[EndTime "14:37:32 PDT"]
[Termination "Goryachkina won on time"]

1. d4 {[%clk 0:03:00.2]} 1... Nf6 {[%clk 0:02:59.8]} 2. c4 {[%clk 0:03:00.7]}
2... e6 {[%clk 0:03:00]} 3. Nc3 {[%clk 0:03:01.2]} 3... d5 {[%clk 0:02:59.5]} 4.
Bf4 {[%clk 0:03:00.5]} 4... dxc4 {[%clk 0:02:57.5]} 5. e3 {[%clk 0:03:00.4]}
5... c5 {[%clk 0:02:53.2]} 6. Bxc4 {[%clk 0:02:58.7]} 6... cxd4 {[%clk
0:02:52.8]} 7. exd4 {[%clk 0:02:59.1]} 7... Bd6 {[%clk 0:02:44.6]} 8. Bxd6
{[%clk 0:02:51.9]} 8... Qxd6 {[%clk 0:02:44.4]} 9. Nf3 {[%clk 0:02:52.7]} 9...
O-O {[%clk 0:02:44.4]} 10. O-O {[%clk 0:02:53.2]} 10... Nc6 {[%clk 0:02:37.4]}
11. a3 {[%clk 0:02:19.7]} 11... Rd8 {[%clk 0:02:33.5]} 12. Nb5 {[%clk
0:01:19.3]} 12... Qf4 {[%clk 0:02:24.4]} 13. Qa4 {[%clk 0:01:16.5]} 13... a6
{[%clk 0:02:17.2]} 14. Nc3 {[%clk 0:01:01.9]} 14... Nxd4 {[%clk 0:02:04.9]} 15.
Nxd4 {[%clk 0:00:59.2]} 15... Rxd4 {[%clk 0:02:00.2]} 16. Rad1 {[%clk
0:00:56.7]} 16... Bd7 {[%clk 0:01:51]} 17. Rxd4 {[%clk 0:00:51.4]} 17... Qxd4
{[%clk 0:01:50.8]} 18. Qb3 {[%clk 0:00:51.4]} 18... Rc8 {[%clk 0:01:47.1]} 19.
Be2 {[%clk 0:00:46.7]} 19... Bc6 {[%clk 0:01:46.6]} 20. Rd1 {[%clk 0:00:43.9]}
20... Qe5 {[%clk 0:01:46.1]} 21. Qb6 {[%clk 0:00:38.4]} 21... g6 {[%clk
0:01:41]} 22. Bf1 {[%clk 0:00:29.1]} 22... Kg7 {[%clk 0:01:39.1]} 23. Ne2 {[%clk
0:00:26.9]} 23... Nd5 {[%clk 0:01:23]} 24. Qa5 {[%clk 0:00:21.1]} 24... Bb5
{[%clk 0:01:14.4]} 25. Nd4 {[%clk 0:00:13.9]} 25... Bxf1 {[%clk 0:01:14.3]} 26.
Nf3 {[%clk 0:00:09.1]} 26... Qxb2 {[%clk 0:01:09.4]} 27. Rxf1 {[%clk 0:00:07.9]}
27... Rc1 {[%clk 0:01:07.3]} 28. Re1 {[%clk 0:00:05]} 28... Nf4 {[%clk
0:00:49.7]} 29. g3 {[%clk 0:00:02]} 29... Nd3 {[%clk 0:00:41.9]} 0-1